fUST/lending_fUST_20250825
["ID","MTS","AMOUNT","RATE_DAILY","PERIOD"]
[381142429,1756073442968,-569.586279,0.00030694,7]
[381142430,1756073442977,-1605.232971,0.00030694,7]
[381142431,1756073442987,-569.586279,0.00030694,7]
[381142432,1756073442996,-14108.9,0.000307,7]
[381142433,1756073443005,-169.08,0.000307,7]
[381142434,1756073443014,-3494.63,0.000307,7]
[381142435,1756073443023,-5719.51,0.000307,2]
[381142436,1756073443032,-151.0,0.000307,7]
[381142437,1756073443041,-152.362666,0.000307,7]
[381142438,1756073443051,-151.0,0.000307,7]
[381142439,1756073443060,-284.156369,0.000307,7]
[381142440,1756073443069,-151.0,0.000307,7]
[381142441,1756073443078,-151.0,0.000307,7]
[381142442,1756073443088,-151.0,0.000307,7]
[381142443,1756073443097,-151.0,0.000307,7]
[381142444,1756073443106,-151.0,0.000307,7]
[381142445,1756073443116,-151.0,0.000307,7]
[381142446,1756073443125,-151.0,0.000307,7]
[381142447,1756073443135,-151.0,0.000307,7]
[381142448,1756073443144,-160.37027,0.000307,7]
[381142449,1756073443153,-160.37027,0.000307,7]
[381142450,1756073443163,-151.0,0.000307,7]
[381142451,1756073443172,-160.37027,0.000307,7]
[381142452,1756073443182,-160.37027,0.000307,7]
[381142453,1756073443191,-151.0,0.000307,7]
[381142454,1756073443201,-567.367118,0.000307,7]
[381142455,1756073443210,-567.367118,0.000307,7]
[381142456,1756073443220,-567.367118,0.000307,7]
[381142457,1756073443229,-151.0,0.000307,7]
[381142458,1756073443238,-256.454979,0.000307,7]
[381142459,1756073443248,-567.367118,0.000307,7]
[381142460,1756073443257,-151.0,0.000307,7]
[381142461,1756073443267,-151.0,0.000307,7]
[381142462,1756073443277,-423.645617,0.000307,7]
[381142463,1756073443286,-256.454979,0.000307,7]
[381142464,1756073443296,-151.0,0.000307,7]
[381142465,1756073443305,-423.645617,0.000307,7]
[381142466,1756073443314,-256.454979,0.000307,7]
[381142467,1756073443324,-423.645617,0.000307,7]
[381142468,1756073443335,-256.454979,0.000307,7]
[381142469,1756073443349,-423.645617,0.000307,7]
[381142470,1756073443359,-402.399781,0.000307,7]
[381142471,1756073443368,-402.399781,0.000307,7]
[381142472,1756073443379,-402.399781,0.000307,7]
[381142473,1756073443388,-402.399781,0.000307,7]
[381142474,1756073443397,-154.764557,0.000307,7]
[381142475,1756073443407,-154.764557,0.000307,7]
[381142476,1756073443418,-154.764557,0.000307,7]
[381142477,1756073443427,-280.269937,0.000307,7]
[381142478,1756073443437,-154.764557,0.000307,7]
[381142479,1756073443446,-151.0,0.000307,7]
[381142480,1756073443455,-387.147888,0.000307,7]
[381142481,1756073443465,-280.269937,0.000307,7]
[381142483,1756073443474,-151.0,0.000307,7]
[381142484,1756073443483,-280.269937,0.000307,7]
[381142486,1756073443493,-387.147888,0.000307,7]
[381142487,1756073443502,-280.269937,0.000307,7]
[381142489,1756073443511,-387.147888,0.000307,7]
[381142491,1756073443521,-151.0,0.000307,7]
[381142493,1756073443530,-387.147888,0.000307,7]
[381142496,1756073443539,-151.0,0.000307,7]
[381142498,1756073443549,-151.0,0.000307,7]
[381142500,1756073443559,-151.0,0.000307,7]
[381142502,1756073443568,-151.0,0.000307,7]
[381142503,1756073443578,-151.0,0.000307,7]
[381142504,1756073443588,-256.892,0.000307,7]
[381142505,1756073443597,-630.704233,0.000307,7]
[381142506,1756073443606,-630.704233,0.000307,7]
[381142507,1756073443615,-630.704233,0.000307,7]
[381142508,1756073443624,-630.704233,0.000307,7]
[381142509,1756073443633,-151.0,0.000307,7]
[381142510,1756073443643,-150.0,0.00030701,120]
[381142511,1756073443652,-154.229761,0.00030769,20]
[381142512,1756073443661,-154.229761,0.00030792,20]
[381142513,1756073443671,-241.469457,0.00030792,7]
[381142514,1756073443679,-151.0,0.00030792,7]
[381142515,1756073443688,-151.0,0.00030792,7]
[381142516,1756073443697,-151.0,0.00030792,7]
[381142517,1756073443707,-151.0,0.00030792,7]
[381142518,1756073443715,-151.0,0.00030792,7]
[381142519,1756073443725,-151.0,0.00030792,7]
[381142520,1756073443736,-506.25103804,0.00030903,2]
[381142521,1756073443745,-500.0,0.00030973,5]
[381142522,1756073443754,-270.177408,0.0003098,7]
[381142523,1756073443763,-151.0,0.0003098,7]
[381142524,1756073443772,-151.0,0.0003098,7]
[381142525,1756073443782,-151.0,0.0003098,7]
[381142526,1756073443793,-269.512267,0.0003098,7]
[381142527,1756073443803,-186.485303,0.0003098,7]
[381142528,1756073443812,-269.512267,0.0003098,7]
[381142529,1756073443822,-269.512267,0.0003098,7]
[381142530,1756073443831,-269.512267,0.0003098,7]
[381142531,1756073443840,-151.0,0.0003098,7]
[381142532,1756073443849,-949.174368,0.0003098,7]
[381142533,1756073443860,-151.0,0.0003098,7]
[381142534,1756073443869,-949.174368,0.0003098,7]
[381142535,1756073443878,-151.0,0.0003098,7]
[381142536,1756073443887,-151.0,0.0003098,7]
[381142537,1756073443896,-949.174368,0.0003098,7]
[381142538,1756073443906,-151.0,0.0003098,7]
[381142539,1756073443915,-151.0,0.0003098,7]
[381142540,1756073443924,-949.174368,0.0003098,7]
[381142541,1756073443934,-569.586279,0.0003098,7]
[381142542,1756073443943,-1605.232971,0.0003098,7]
[381142543,1756073443952,-569.586279,0.0003098,7]
[381142544,1756073443961,-1605.232971,0.0003098,7]
[381142545,1756073443970,-1605.232971,0.0003098,7]
[381142546,1756073443979,-569.586279,0.0003098,7]
[381142547,1756073443989,-1605.232971,0.0003098,7]
[381142548,1756073443998,-569.586279,0.0003098,7]
[381142549,1756073444008,-47952.0278523,0.0003098,2]
[381142550,1756073444017,-151.0,0.0003099,7]
[381142551,1756073444025,-151.0,0.0003099,7]
[381142552,1756073444035,-151.0,0.0003099,7]
[381142553,1756073444045,-151.0,0.0003099,7]
[381142554,1756073444054,-151.0,0.0003099,7]
[381142555,1756073444065,-151.0,0.0003099,7]
[381142556,1756073444074,-151.0,0.0003099,7]
[381142557,1756073444083,-160.658675,0.0003099,7]
[381142558,1756073444092,-160.658675,0.0003099,7]
[381142559,1756073444102,-160.658675,0.0003099,7]
[381142560,1756073444111,-160.658675,0.0003099,7]
[381142561,1756073444121,-151.0,0.0003099,7]
[381142562,1756073444130,-151.0,0.0003099,7]
[381142563,1756073444140,-151.0,0.0003099,7]
[381142564,1756073444149,-151.0,0.0003099,7]
[381142565,1756073444158,-151.0,0.0003099,7]
[381142566,1756073444168,-151.0,0.0003099,7]
[381142567,1756073444178,-151.0,0.0003099,7]
[381142568,1756073444187,-151.0,0.0003099,7]
[381142569,1756073444196,-151.0,0.0003099,7]
[381142570,1756073444205,-151.0,0.0003099,7]
[381142571,1756073444214,-151.0,0.0003099,7]
[381142572,1756073444224,-151.0,0.0003099,7]
[381142573,1756073444233,-151.0,0.0003099,7]
[381142574,1756073444242,-151.0,0.0003099,7]
[381142575,1756073444251,-151.0,0.0003099,7]
[381142576,1756073444261,-151.0,0.0003099,7]
[381142577,1756073444270,-151.0,0.0003099,7]
[381142578,1756073444279,-151.0,0.0003099,7]
[381142579,1756073444289,-151.0,0.0003099,7]
[381142580,1756073444298,-151.0,0.0003099,7]
[381142581,1756073444307,-151.0,0.0003099,7]
[381142582,1756073444317,-151.0,0.0003099,7]
[381142583,1756073444326,-151.0,0.0003099,7]
[381142584,1756073444338,-183.054358,0.0003099,7]
[381142585,1756073444347,-151.0,0.0003099,7]
[381142586,1756073444357,-151.0,0.0003099,7]
[381142587,1756073444366,-151.0,0.0003099,7]
[381142588,1756073444375,-151.0,0.0003099,7]
[381142589,1756073444385,-151.0,0.0003099,7]
[381142590,1756073444394,-151.0,0.0003099,7]
[381142591,1756073444403,-151.0,0.0003099,7]
[381142592,1756073444414,-151.0,0.0003099,7]
[381142593,1756073444423,-151.0,0.0003099,7]
[381142594,1756073444432,-163.353797,0.0003099,7]
[381142595,1756073444442,-163.353797,0.0003099,7]
[381142596,1756073444451,-163.353797,0.0003099,7]
[381142597,1756073444460,-163.353797,0.0003099,7]
[381142598,1756073444469,-153.432833,0.0003099,7]
[381142599,1756073444478,-151.0,0.0003099,7]
[381142600,1756073444487,-241.736049,0.0003099,7]
[381142601,1756073444496,-241.736049,0.0003099,7]
[381142602,1756073444506,-233.734865,0.0003099,7]
[381142603,1756073444515,-233.734865,0.0003099,7]
[381142604,1756073444525,-241.736049,0.0003099,7]
[381142605,1756073444534,-241.736049,0.0003099,7]
[381142606,1756073444545,-233.734865,0.0003099,7]
[381142607,1756073444555,-233.734865,0.0003099,7]
[381142608,1756073444564,-151.0,0.0003099,7]
[381142609,1756073444573,-151.0,0.0003099,7]
[381142610,1756073444582,-151.0,0.0003099,7]
[381142611,1756073444591,-151.0,0.00031,120]
[381142612,1756073444600,-160.0,0.00031032,2]
[381142613,1756073444610,-508.94792447,0.00031221,5]
[381142614,1756073444619,-1000.0,0.00031221,5]
[381142615,1756073444628,-500.0,0.00031221,5]
[381142616,1756073444637,-1000.0,0.00031221,5]
[381142617,1756073444648,-1000.0,0.00031221,5]
[381142618,1756073444658,-151.0,0.000314,17]
[381142619,1756073444667,-260.0,0.0003158,2]
[381142620,1756073444676,-151.0,0.000316,12]
[381142621,1756073444686,-1500.0,0.00031768,5]
[381142622,1756073444695,-151.0,0.000318,18]
[381142623,1756073444705,-470.602101,0.0003186,2]
[381142624,1756073444715,-47952.0278523,0.00031966,2]
[381142625,1756073444724,-151.0,0.00031966,7]
[381142626,1756073444733,-151.0,0.00031966,7]
[381142627,1756073444742,-151.0,0.00031966,7]
[381142628,1756073444751,-269.512267,0.00031966,7]
[381142629,1756073444761,-269.512267,0.00031966,7]
[381142630,1756073444770,-269.512267,0.00031966,7]
[381142631,1756073444779,-269.512261,0.00031966,7]
[381142632,1756073444789,-151.0,0.00031966,7]
[381142633,1756073444798,-949.174368,0.00031966,7]
[381142634,1756073444807,-151.0,0.00031966,7]
[381142635,1756073444817,-949.174368,0.00031966,7]
[381142636,1756073444826,-151.0,0.00031966,7]
[381142637,1756073444835,-151.0,0.00031966,7]
[381142638,1756073444845,-949.174368,0.00031966,7]
[381142639,1756073444854,-151.0,0.00031966,7]
[381142640,1756073444863,-151.0,0.00031966,7]
[381142641,1756073444872,-949.174373,0.00031966,7]
[381142642,1756073444881,-569.586279,0.00031966,7]
[381142643,1756073444891,-1605.232971,0.00031966,7]
[381142644,1756073444900,-1605.232971,0.00031966,7]
[381142645,1756073444910,-569.586279,0.00031966,7]
[381142646,1756073444920,-1605.232971,0.00031966,7]
[381142647,1756073444929,-569.586279,0.00031966,7]
[381142648,1756073444939,-1605.2329744,0.00031966,7]
[381142649,1756073444948,-569.586275,0.00031966,7]
[381142650,1756073444957,-500.0,0.00031973,2]
[381142651,1756073444967,-500.0,0.00031973,5]
[381142652,1756073444976,-350.34236272,0.00031973,5]
[381142653,1756073444985,-151.0,0.00031976,7]
[381142654,1756073444994,-151.0,0.00031976,7]
[381142655,1756073445003,-151.0,0.00031976,7]
[381142656,1756073445012,-151.0,0.00031976,7]
[381142657,1756073445021,-163.353797,0.00031976,7]
[381142658,1756073445030,-163.353797,0.00031976,7]
[381142659,1756073445039,-163.353797,0.00031976,7]
[381142660,1756073445049,-163.353797,0.00031976,7]
[381142661,1756073445058,-151.0,0.00031976,7]
[381142662,1756073445067,-151.000002,0.00031976,7]
[381142663,1756073445077,-151.0,0.00031976,7]
[381142664,1756073445086,-199.088,0.00031976,7]
[381142665,1756073445095,-241.736049,0.00031976,7]
[381142666,1756073445105,-233.734865,0.00031976,7]
[381142667,1756073445114,-241.736049,0.00031976,7]
[381142668,1756073445123,-233.734865,0.00031976,7]
[381142669,1756073445132,-241.736049,0.00031976,7]
[381142670,1756073445141,-241.736049,0.00031976,7]
[381142671,1756073445151,-233.734865,0.00031976,7]
[381142672,1756073445160,-233.734865,0.00031976,7]
[381142673,1756073445169,-151.0,0.00031976,7]
[381142674,1756073445178,-151.0,0.00031976,7]
[381142675,1756073445187,-151.0,0.00031976,7]
[381142676,1756073445197,-151.0,0.00031976,7]
[381142677,1756073445206,-151.0,0.00031976,7]
[381142678,1756073445215,-151.0,0.00031976,7]
[381142679,1756073445224,-567.367118,0.00031976,7]
[381142680,1756073445233,-567.367118,0.00031976,7]
[381142681,1756073445242,-567.367118,0.00031976,7]
[381142682,1756073445251,-151.0,0.00031976,7]
[381142683,1756073445260,-567.367122,0.00031976,7]
[381142684,1756073445269,-256.454979,0.00031976,7]
[381142685,1756073445279,-230.861571,0.00031976,7]
[381142686,1756073445289,-151.0,0.00031976,7]
[381142687,1756073445299,-423.645617,0.00031976,7]
[381142688,1756073445308,-256.454979,0.00031976,7]
[381142689,1756073445317,-151.0,0.00031976,7]
[381142690,1756073445327,-423.645617,0.00031976,7]
[381142691,1756073445339,-256.454979,0.00031976,7]
[381142692,1756073445348,-423.645617,0.00031976,7]
[381142693,1756073445358,-256.454985,0.00031976,7]
[381142694,1756073445367,-423.645619,0.00031976,7]
[381142695,1756073445516,-402.399781,0.00031976,7]
[381142696,1756073445543,-402.399781,0.00031976,7]
[381142697,1756073445552,-402.399781,0.00031976,7]
[381142698,1756073445562,-402.399773,0.00031976,7]
[381142699,1756073445571,-154.764557,0.00031976,7]
[381142700,1756073445581,-154.764557,0.00031976,7]
[381142701,1756073445590,-154.764557,0.00031976,7]
[381142702,1756073445600,-280.269937,0.00031976,7]
[381142703,1756073445610,-154.764561,0.00031976,7]
[381142704,1756073445619,-151.0,0.00031976,7]
[381142705,1756073445628,-387.147888,0.00031976,7]
[381142706,1756073445638,-280.269937,0.00031976,7]
[381142707,1756073445647,-151.0,0.00031976,7]
[381142708,1756073445657,-280.269937,0.00031976,7]
[381142709,1756073445667,-387.147888,0.00031976,7]
[381142710,1756073445677,-280.269935,0.00031976,7]
[381142711,1756073445686,-387.147888,0.00031976,7]
[381142712,1756073445696,-151.0,0.00031976,7]
[381142713,1756073445705,-387.147883,0.00031976,7]
[381142714,1756073445714,-151.0,0.00031976,7]
[381142715,1756073445725,-151.0,0.00031976,7]
[381142716,1756073445734,-151.0,0.00031976,7]
[381142717,1756073445743,-231.066034,0.00031976,7]
[381142718,1756073445752,-151.0,0.00031976,7]
[381142719,1756073445761,-630.704233,0.00031976,7]
[381142720,1756073445771,-630.704233,0.00031976,7]
[381142721,1756073445780,-630.704233,0.00031976,7]
[381142722,1756073445789,-630.704233,0.00031976,7]
[381142724,1756073445799,-151.0,0.00031976,7]
[381142726,1756073445808,-843.74,0.0003199,3]
[381142727,1756073445817,-421.86,0.0003199,3]
[381142728,1756073445827,-151.0,0.00032,11]
[381142729,1756073445837,-300.0,0.00032071,120]
[381142731,1756073445847,-360.0,0.00032127,2]
[381142732,1756073445857,-500.0,0.00032167,5]
[381142733,1756073445866,-330.62878384,0.00032167,5]
[381142734,1756073445875,-151.0,0.000322,15]
[381142735,1756073445885,-10014.4314321,0.00032252,2]
[381142736,1756073445895,-1925.1472529,0.00032252,2]
[381142737,1756073445904,-2000.0,0.00032316,5]
[381142738,1756073445913,-420.0,0.00032322,2]
[381142739,1756073445923,-151.0,0.000324,14]
[381142740,1756073445933,-1004.86464434,0.0003252,5]
[381142741,1756073445942,-514.21672685,0.00032573,5]
[381142742,1756073445951,-500.0,0.00032573,5]
[381142743,1756073445961,-500.0,0.00032573,5]
[381142744,1756073445969,-47952.0278523,0.0003258,2]
[381142745,1756073445979,-151.0,0.0003259,7]
[381142746,1756073445988,-151.0,0.0003259,7]
[381142747,1756073445998,-151.0,0.0003259,7]
[381142748,1756073446007,-151.0,0.0003259,7]
[381142749,1756073446017,-151.0,0.0003259,7]
[381142750,1756073446027,-151.0,0.0003259,7]
[381142751,1756073446037,-151.0,0.0003259,7]
[381142752,1756073446046,-151.0,0.0003259,7]
[381142753,1756073446056,-151.0,0.0003259,7]
[381142754,1756073446066,-151.0,0.0003259,7]
[381142755,1756073446075,-160.37027,0.0003259,7]
[381142756,1756073446086,-160.37027,0.0003259,7]
[381142757,1756073446098,-151.0,0.0003259,7]
[381142759,1756073446107,-160.37027,0.0003259,7]
[381142761,1756073446117,-160.37027,0.0003259,7]
[381142762,1756073446126,-151.0,0.0003259,7]
[381142763,1756073446136,-233.394478,0.0003259,7]
[381142765,1756073446145,-151.0,0.0003259,7]
[381142766,1756073446155,-151.0,0.0003259,7]
[381142767,1756073446165,-151.0,0.0003259,7]
[381142768,1756073446174,-179.26104,0.0003259,7]
[381142769,1756073446184,-151.0,0.0003259,7]
[381142770,1756073446193,-181.84,0.0003259,7]
[381142771,1756073446202,-160.658675,0.0003259,7]
[381142772,1756073446212,-160.658675,0.0003259,7]
[381142773,1756073446221,-160.658675,0.0003259,7]
[381142774,1756073446231,-160.658675,0.0003259,7]
[381142775,1756073446240,-151.0,0.0003259,7]
[381142776,1756073446249,-151.0,0.0003259,7]
[381142777,1756073446259,-151.0,0.0003259,7]
[381142778,1756073446268,-151.0,0.0003259,7]
[381142779,1756073446277,-155.006395,0.0003259,7]
[381142780,1756073446287,-151.0,0.0003259,7]
[381142781,1756073446298,-151.0,0.0003259,7]
[381142782,1756073446308,-151.0,0.0003259,7]
[381142783,1756073446318,-151.0,0.0003259,7]
[381142784,1756073446327,-151.0,0.0003259,7]
[381142785,1756073446340,-151.0,0.0003259,7]
[381142786,1756073446350,-151.0,0.0003259,7]
[381142787,1756073446359,-151.0,0.0003259,7]
[381142788,1756073446368,-151.0,0.0003259,7]
[381142789,1756073446378,-151.0,0.0003259,7]
[381142790,1756073446388,-151.0,0.0003259,7]
[381142792,1756073446398,-151.0,0.0003259,7]
[381142794,1756073446408,-253.921792,0.0003259,7]
[381142796,1756073446418,-151.0,0.0003259,7]
[381142797,1756073446427,-151.0,0.0003259,7]
[381142798,1756073446437,-151.0,0.0003259,7]
[381142799,1756073446447,-151.0,0.0003259,7]
[381142800,1756073446456,-151.0,0.0003259,7]
[381142801,1756073446465,-151.0,0.0003259,7]
[381142802,1756073446475,-196.246994,0.0003259,7]
[381142803,1756073446484,-151.0,0.0003259,7]
[381142804,1756073446493,-194.994437,0.0003259,7]
[381142805,1756073446504,-151.0,0.0003259,7]
[381142806,1756073446513,-151.0,0.0003259,7]
[381142807,1756073446522,-151.0,0.0003259,7]
[381142808,1756073446532,-163.353797,0.0003259,7]
[381142809,1756073446541,-163.353797,0.0003259,7]
[381142810,1756073446550,-163.353797,0.0003259,7]
[381142811,1756073446559,-163.353792,0.0003259,7]
[381142812,1756073446569,-241.736049,0.0003259,7]
[381142813,1756073446578,-233.734865,0.0003259,7]
[381142814,1756073446587,-241.736049,0.0003259,7]
[381142815,1756073446597,-241.736049,0.0003259,7]
[381142816,1756073446606,-233.734865,0.0003259,7]
[381142817,1756073446616,-241.736053,0.0003259,7]
[381142818,1756073446625,-233.734865,0.0003259,7]
[381142819,1756073446634,-233.734865,0.0003259,7]
[381142820,1756073446643,-151.0,0.0003259,7]
[381142821,1756073446652,-151.0,0.0003259,7]
[381142822,1756073446662,-151.0,0.0003259,7]
[381142823,1756073446671,-151.0,0.0003259,7]
[381142824,1756073446681,-151.0,0.0003259,7]
[381142825,1756073446690,-151.0,0.0003259,7]
[381142826,1756073446699,-151.0,0.0003259,7]
[381142827,1756073446708,-151.0,0.0003259,7]
[381142828,1756073446717,-151.0,0.0003259,7]
[381142829,1756073446726,-630.704233,0.0003259,7]
[381142830,1756073446736,-630.704233,0.0003259,7]
[381142831,1756073446745,-630.704233,0.0003259,7]
[381142832,1756073446753,-630.70422904,0.0003259,7]
[381142833,1756073446763,-151.0,0.0003259,7]
[381142834,1756073446772,-2234.5216892,0.000326,2]
[381142835,1756073446782,-429.5584148,0.000326,2]
[381142836,1756073446791,-460.0,0.00032675,2]
[381142837,1756073446800,-5000.0,0.00032695,4]
[381142838,1756073446810,-214.48840903,0.00032745,2]
[381142839,1756073446819,-500.0,0.00032814,5]
[381142840,1756073446828,-500.0,0.00032814,5]
[381142841,1756073446837,-500.51423272,0.00032814,5]
[381142842,1756073446847,-500.0,0.00032814,5]
[381142843,1756073446856,-500.0,0.00032814,5]
[381142844,1756073446866,-376.22310801,0.00032862,2]
[381142845,1756073446875,-581.83210946,0.00032864,5]
[381142846,1756073446884,-500.0,0.00032876,120]
[381142847,1756073446894,-388.0,0.00032892,3]
[381142848,1756073446904,-1000.0,0.00033121,5]
[381142849,1756073446913,-315.935295,0.00033165,2]
[381142850,1756073446922,-14108.9,0.000332,14]
[381142851,1756073446931,-151.0,0.000332,7]
[381142852,1756073446941,-151.0,0.000332,7]
[381142853,1756073446950,-151.0,0.000332,7]
[381142854,1756073446959,-312.569554,0.000332,7]
[381142855,1756073446970,-312.569554,0.000332,7]
[381142856,1756073446979,-312.569554,0.000332,7]
[381142857,1756073446991,-312.569554,0.000332,7]
[381142858,1756073447001,-151.0,0.000332,7]
[381142859,1756073447010,-151.0,0.000332,7]
[381142860,1756073447019,-151.0,0.000332,7]
[381142861,1756073447030,-151.0,0.000332,7]
[381142862,1756073447040,-151.0,0.000332,7]
[381142863,1756073447049,-151.0,0.000332,7]
[381142864,1756073447059,-151.0,0.000332,7]
[381142865,1756073447069,-151.0,0.000332,7]
[381142866,1756073447078,-182.328358,0.000332,7]
[381142867,1756073447087,-151.0,0.000332,7]
[381142868,1756073447097,-151.0,0.000332,7]
[381142869,1756073447105,-151.0,0.000332,7]
[381142870,1756073447115,-151.0,0.000332,7]
[381142871,1756073447124,-160.658675,0.000332,7]
[381142872,1756073447134,-160.658675,0.000332,7]
[381142873,1756073447143,-160.658675,0.000332,7]
[381142874,1756073447153,-160.658675,0.000332,7]
[381142875,1756073447162,-151.0,0.000332,7]
[381142876,1756073447171,-151.0,0.000332,7]
[381142877,1756073447181,-151.0,0.000332,7]
[381142878,1756073447190,-151.0,0.000332,7]
[381142879,1756073447199,-151.0,0.000332,7]
[381142880,1756073447209,-151.0,0.000332,7]
[381142881,1756073447218,-151.0,0.000332,7]
[381142882,1756073447227,-151.0,0.000332,7]
[381142883,1756073447237,-151.0,0.000332,7]
[381142884,1756073447247,-151.0,0.000332,7]
[381142885,1756073447256,-167.063408,0.000332,7]
[381142886,1756073447265,-151.0,0.000332,7]
[381142887,1756073447276,-151.0,0.000332,7]
[381142888,1756073447285,-151.0,0.000332,7]
[381142889,1756073447295,-151.0,0.000332,7]
[381142890,1756073447304,-151.0,0.000332,7]
[381142891,1756073447314,-151.0,0.000332,7]
[381142892,1756073447324,-151.0,0.000332,7]
[381142893,1756073447333,-151.0,0.000332,7]
[381142894,1756073447347,-151.0,0.000332,7]
[381142895,1756073447357,-151.0,0.000332,7]
[381142896,1756073447366,-165.290678,0.000332,7]
[381142897,1756073447376,-1500.0,0.000332,28]
[381142898,1756073447386,-1500.0,0.000332,28]
[381142899,1756073447396,-1500.0,0.000332,28]
[381142900,1756073447405,-1500.0,0.000332,28]
[381142901,1756073447415,-1500.0,0.000332,28]
[381142902,1756073447424,-1500.0,0.000332,28]
[381142903,1756073447434,-1500.0,0.000332,28]
[381142904,1756073447443,-1500.0,0.000332,28]
[381142905,1756073447452,-1500.0,0.000332,28]
[381142906,1756073447462,-1500.0,0.000332,28]
[381142907,1756073447471,-1500.0,0.000332,28]
[381142908,1756073447481,-1500.0,0.000332,28]
[381142909,1756073447490,-630.537703,0.000332,28]
[381142910,1756073447499,-560.0,0.00033223,2]
[381142911,1756073447508,-1000.0,0.00033362,5]
[381142912,1756073447517,-169.08,0.000334,7]
[381142913,1756073447526,-3494.63,0.000334,7]
[381142914,1756073447536,-5719.51,0.000334,14]
[381142915,1756073447545,-500.36952971,0.0003344,5]
[381142916,1756073447554,-740.84068884,0.00033442,2]
[381142917,1756073447564,-1500.0,0.00033668,5]
[381142918,1756073447573,-785.64107222,0.00033712,21]
[381142919,1756073447583,-660.0,0.00033771,2]
[381142920,1756073447593,-1500.0,0.0003391,5]
[381142921,1756073447602,-250.0,0.00034,120]
[381142922,1756073447612,-151.0,0.000342,120]
[381142923,1756073447621,-2000.0,0.00034216,5]
[381142924,1756073447630,-620.0,0.00034319,2]
[381142925,1756073447640,-151.0,0.00034361,7]
[381142926,1756073447649,-151.0,0.00034361,7]
[381142927,1756073447658,-151.0,0.00034361,7]
[381142928,1756073447667,-151.0,0.00034361,7]
[381142929,1756073447677,-151.0,0.00034361,7]
[381142930,1756073447686,-151.0,0.00034361,7]
[381142931,1756073447696,-160.37027,0.00034361,7]
[381142932,1756073447705,-160.37027,0.00034361,7]
[381142933,1756073447714,-151.0,0.00034361,7]
[381142934,1756073447723,-160.37027,0.00034361,7]
[381142935,1756073447732,-160.37027,0.00034361,7]
[381142936,1756073447742,-1162.2334549,0.00034361,30]
[381142937,1756073447751,-500.0,0.00034458,5]
[381142938,1756073447761,-500.0,0.0003452,120]
[381142939,1756073447770,-2500.0,0.00034764,5]
[381142940,1756073447780,-587.0,0.00034836,2]
[381142941,1756073447789,-470.602101,0.00035285,2]
[381142942,1756073447798,-1540.75589739,0.00035312,5]
[381142943,1756073447807,-785.64107222,0.00035439,24]
[381142944,1756073447817,-326.0,0.00035996,14]
[381142945,1756073447826,-326.0,0.00035996,14]
[381142946,1756073447835,-326.0,0.00035996,14]
[381142947,1756073447844,-326.0,0.00035996,14]